[Event "Rapid Tournament (RAP)"]
[Site "Biel, Switzerland"]
[Date "2026.07.12"]
[Round "5.41"]
[White "Lopez, Manuel"]
[Black "Bachmann, Daniel"]
[Result "0-1"]
[TimeControl "15 + 5"]
[WhiteTitle "-"]
[BlackTitle "-"]
[WhiteFideId "1306324"]
[BlackFideId "1357492"]
[WhiteElo "1916"]
[BlackElo "1786"]

1. e4 {[%clk 00:15:08]} e6 {[%clk 00:15:06]} {[%emt 00:00:05]} 2. Nf3 {[%clk
00:15:10]} {[%emt 00:00:02]} d5 {[%clk 00:15:10]} {[%emt 00:00:02]} 3. e5
{[%clk 00:15:14]} {[%emt 00:00:01]} c5 {[%clk 00:15:14]} {[%emt 00:00:02]} 4.
b4 {[%clk 00:15:18]} {[%emt 00:00:01]} d4 {[%clk 00:15:14]} {[%emt 00:00:04]} 5.
bxc5 {[%clk 00:15:21]} {[%emt 00:00:02]} Bxc5 {[%clk 00:15:15]} {[%emt
00:00:04]} 6. Bd3 {[%clk 00:15:04]} {[%emt 00:00:22]} Ne7 {[%clk 00:14:52]}
{[%emt 00:00:28]} 7. O-O {[%clk 00:15:01]} {[%emt 00:00:07]} Nbc6 {[%clk
00:14:49]} {[%emt 00:00:09]} 8. Re1 {[%clk 00:14:55]} {[%emt 00:00:11]} Bd7
{[%clk 00:14:34]} {[%emt 00:00:20]} 9. Ba3 {[%clk 00:14:04]} {[%emt 00:00:56]}
Qa5 {[%clk 00:14:10]} {[%emt 00:00:30]} 10. Bxc5 {[%clk 00:14:02]} {[%emt
00:00:07]} Qxc5 {[%clk 00:14:13]} {[%emt 00:00:02]} 11. Qe2 {[%clk 00:13:44]}
{[%emt 00:00:22]} Ng6 {[%clk 00:13:56]} {[%emt 00:00:22]} 12. g3 {[%clk
00:13:29]} {[%emt 00:00:21]} Nb4 {[%clk 00:13:37]} {[%emt 00:00:24]} 13. c3
{[%clk 00:10:18]} {[%emt 00:03:16]} Nxd3 {[%clk 00:12:47]} {[%emt 00:00:54]} 14.
Qxd3 {[%clk 00:10:20]} {[%emt 00:00:02]} dxc3 {[%clk 00:12:13]} {[%emt
00:00:41]} 15. Nxc3 {[%clk 00:10:20]} {[%emt 00:00:04]} Rd8 {[%clk 00:11:58]}
{[%emt 00:00:20]} 16. Qe3 {[%clk 00:09:11]} {[%emt 00:01:12]} Qxe3 {[%clk
00:11:53]} {[%emt 00:00:12]} 17. Rxe3 {[%clk 00:08:22]} {[%emt 00:00:54]} Bc6
{[%clk 00:11:56]} {[%emt 00:00:02]} 18. Ne4 {[%clk 00:07:49]} {[%emt 00:00:38]}
Ke7 {[%clk 00:10:49]} {[%emt 00:01:13]} 19. Rb1 {[%clk 00:07:15]} {[%emt
00:00:39]} f5 {[%clk 00:10:15]} {[%emt 00:00:39]} 20. exf6+ {[%clk 00:07:13]}
{[%emt 00:00:07]} gxf6 {[%clk 00:10:13]} {[%emt 00:00:06]} 21. Rb2 {[%clk
00:05:55]} {[%emt 00:01:24]} b6 {[%clk 00:09:04]} {[%emt 00:01:14]} 22. Nc3
{[%clk 00:05:33]} {[%emt 00:00:26]} Rd7 {[%clk 00:08:25]} {[%emt 00:00:44]} 23.
Kf1 {[%clk 00:05:37]} {[%emt 00:00:01]} h5 {[%clk 00:08:17]} {[%emt 00:00:13]}
24. h4 {[%clk 00:05:41]} {[%emt 00:00:02]} Rhd8 {[%clk 00:07:51]} {[%emt
00:00:31]} 25. Ke1 {[%clk 00:05:45]} Bxf3 {[%clk 00:07:48]} {[%emt 00:00:08]}
26. Rxf3 {[%clk 00:05:49]} {[%emt 00:00:01]} Ne5 {[%clk 00:07:52]} {[%emt
00:00:01]} 27. Re3 {[%clk 00:05:41]} {[%emt 00:00:13]} Nc4 {[%clk 00:07:53]}
{[%emt 00:00:03]} 28. Rc2 {[%clk 00:05:38]} {[%emt 00:00:08]} Nxe3 {[%clk
00:07:51]} {[%emt 00:00:07]} 29. fxe3 {[%clk 00:05:42]} {[%emt 00:00:01]} f5
{[%clk 00:07:45]} {[%emt 00:00:11]} 30. Ke2 {[%clk 00:05:45]} {[%emt 00:00:02]}
a6 {[%clk 00:07:47]} {[%emt 00:00:04]} 31. Rb2 {[%clk 00:05:49]} b5 {[%clk
00:07:47]} {[%emt 00:00:04]} 32. a4 {[%clk 00:05:48]} {[%emt 00:00:07]} b4
{[%clk 00:07:23]} {[%emt 00:00:28]} 33. Rxb4 {[%clk 00:03:44]} {[%emt
00:02:09]} Rxd2+ {[%clk 00:07:26]} {[%emt 00:00:02]} 34. Kf3 {[%clk 00:03:48]}
{[%emt 00:00:01]} e5 {[%clk 00:06:22]} {[%emt 00:01:09]} 35. Rb6 {[%clk
00:03:49]} {[%emt 00:00:03]} R8d6 {[%clk 00:05:51]} {[%emt 00:00:38]} 36. Rb7+
{[%clk 00:03:20]} {[%emt 00:00:34]} Kf6 {[%clk 00:05:44]} {[%emt 00:00:11]} 37.
Ne2 {[%clk 00:03:12]} {[%emt 00:00:13]} Ra2 {[%clk 00:05:33]} {[%emt 00:00:16]}
38. Nc3 {[%clk 00:02:47]} {[%emt 00:00:30]} e4+ {[%clk 00:04:51]} {[%emt
00:00:47]} 39. Nxe4+ {[%clk 00:02:51]} {[%emt 00:00:01]} fxe4+ {[%clk
00:04:50]} {[%emt 00:00:06]} 40. Kxe4 {[%clk 00:02:55]} {[%emt 00:00:01]} Rxa4+
{[%clk 00:04:48]} {[%emt 00:00:08]} 41. Kf3 {[%clk 00:02:59]} Ra1 {[%clk
00:04:30]} {[%emt 00:00:23]} 42. Rb4 {[%clk 00:02:47]} {[%emt 00:00:17]} Ke5
{[%clk 00:04:02]} {[%emt 00:00:26]} 43. Re4+ {[%clk 00:02:42]} {[%emt
00:00:17]} Kd5 {[%clk 00:03:57]} {[%emt 00:00:10]} 44. Re8 {[%clk 00:02:40]}
{[%emt 00:00:08]} Re6 {[%clk 00:03:39]} {[%emt 00:00:23]} 45. Rh8 {[%clk
00:02:32]} {[%emt 00:00:12]} Re5 {[%clk 00:03:16]} {[%emt 00:00:28]} 46. Rd8+
{[%clk 00:02:23]} {[%emt 00:00:14]} Ke6 {[%clk 00:03:13]} {[%emt 00:00:07]} 47.
Re8+ {[%clk 00:02:25]} {[%emt 00:00:05]} Kf6 {[%clk 00:03:14]} {[%emt
00:00:03]} 48. Rf8+ {[%clk 00:02:28]} {[%emt 00:00:02]} Ke7 {[%clk 00:03:08]}
{[%emt 00:00:11]} 49. Ra8 {[%clk 00:02:30]} {[%emt 00:00:04]} Ra3 {[%clk
00:03:00]} {[%emt 00:00:12]} 50. Kf4 {[%clk 00:02:24]} {[%emt 00:00:11]} Rexe3
{[%clk 00:02:57]} {[%emt 00:00:09]} 51. Kg5 {[%clk 00:02:11]} {[%emt 00:00:18]}
Ra5+ {[%clk 00:02:38]} {[%emt 00:00:24]} 52. Kf4 {[%clk 00:02:11]} {[%emt
00:00:04]} Raa3 {[%clk 00:02:14]} {[%emt 00:00:29]} 53. Kg5 {[%clk 00:02:07]}
{[%emt 00:00:09]} Rxg3+ {[%clk 00:02:15]} {[%emt 00:00:04]} 54. Kxh5 {[%clk
00:02:11]} {[%emt 00:00:01]} Kf7 {[%clk 00:02:11]} {[%emt 00:00:09]} 0-1

[Event "Rapid Tournament (RAP)"]
[Site "Biel, Switzerland"]
[Date "2026.07.12"]
[Round "5.42"]
[White "Materia, Mario"]
[Black "Paholok, Igor"]
[Result "1-0"]
[TimeControl "15 + 5"]
[WhiteTitle "-"]
[BlackTitle "-"]
[WhiteFideId "651082241"]
[BlackFideId "1338951"]
[WhiteElo "1914"]
[BlackElo "1784"]

1. d4 {[%clk 00:15:06]} {[%emt 00:00:06]} g6 {[%clk 00:15:10]} 2. c4 {[%clk
00:15:10]} Bg7 {[%clk 00:15:12]} {[%emt 00:00:02]} 3. Nc3 {[%clk 00:15:14]}
{[%emt 00:00:01]} c5 {[%clk 00:15:17]} {[%emt 00:00:01]} 4. d5 {[%clk
00:15:17]} {[%emt 00:00:02]} Bxc3+ {[%clk 00:15:19]} {[%emt 00:00:02]} 5. bxc3
{[%clk 00:15:20]} {[%emt 00:00:02]} f5 {[%clk 00:15:23]} {[%emt 00:00:01]} 6.
h4 {[%clk 00:15:18]} {[%emt 00:00:07]} Nf6 {[%clk 00:15:12]} {[%emt 00:00:16]}
7. d6 {[%clk 00:12:54]} {[%emt 00:02:30]} Nc6 {[%clk 00:11:55]} {[%emt
00:03:22]} 8. Bh6 {[%clk 00:12:02]} {[%emt 00:00:56]} Qa5 {[%clk 00:10:59]}
{[%emt 00:01:00]} 9. Qc2 {[%clk 00:11:31]} {[%emt 00:00:37]} Rg8 {[%clk
00:08:10]} {[%emt 00:02:54]} 10. dxe7 {[%clk 00:11:27]} {[%emt 00:00:10]} Nd4
{[%clk 00:07:32]} {[%emt 00:00:43]} 11. Qb2 {[%clk 00:11:03]} {[%emt 00:00:29]}
Ne4 {[%clk 00:07:02]} {[%emt 00:00:34]} 12. Bd2 {[%clk 00:10:58]} {[%emt
00:00:10]} Nxd2 {[%clk 00:06:58]} {[%emt 00:00:09]} 13. Qxd2 {[%clk 00:10:59]}
{[%emt 00:00:05]} Nb3 {[%clk 00:06:52]} {[%emt 00:00:10]} 14. Qb2 {[%clk
00:10:10]} {[%emt 00:00:55]} Nxa1 {[%clk 00:06:38]} {[%emt 00:00:19]} 15. h5
{[%clk 00:10:08]} {[%emt 00:00:06]} g5 {[%clk 00:04:54]} {[%emt 00:01:49]} 16.
e3 {[%clk 00:09:57]} {[%emt 00:00:16]} Kxe7 {[%clk 00:04:14]} {[%emt 00:00:44]}
17. Bd3 {[%clk 00:09:45]} {[%emt 00:00:18]} d6 {[%clk 00:04:10]} {[%emt
00:00:08]} 18. Ne2 {[%clk 00:09:12]} {[%emt 00:00:39]} Bd7 {[%clk 00:03:29]}
{[%emt 00:00:47]} 19. Ng3 {[%clk 00:08:42]} {[%emt 00:00:34]} f4 {[%clk
00:03:01]} {[%emt 00:00:33]} 20. Ne4 {[%clk 00:08:31]} {[%emt 00:00:17]} fxe3
{[%clk 00:01:55]} {[%emt 00:01:11]} 21. O-O {[%clk 00:08:12]} {[%emt 00:00:24]}
Raf8 {[%clk 00:01:35]} {[%emt 00:00:25]} 22. Rxa1 {[%clk 00:07:38]} {[%emt
00:00:39]} Qc7 {[%clk 00:01:38]} {[%emt 00:00:02]} 23. Re1 {[%clk 00:07:06]}
{[%emt 00:00:37]} exf2+ {[%clk 00:01:15]} {[%emt 00:00:28]} 24. Nxf2+ {[%emt
00:00:02]} Kd8 {[%clk 00:01:17]} 25. Bxh7 {[%clk 00:06:39]} {[%emt 00:00:36]}
Rg7 {[%clk 00:01:15]} {[%emt 00:00:06]} 26. Bg6 {[%clk 00:06:30]} {[%emt
00:00:15]} Bf5 {[%clk 00:00:49]} {[%emt 00:00:29]} 27. Bxf5 {[%clk 00:05:58]}
{[%emt 00:00:39]} Rxf5 {[%clk 00:00:53]} {[%emt 00:00:02]} 28. Ne4 {[%clk
00:05:47]} {[%emt 00:00:16]} g4 {[%clk 00:00:36]} {[%emt 00:00:22]} 29. Rd1
{[%clk 00:05:27]} {[%emt 00:00:24]} Rd7 {[%clk 00:00:22]} {[%emt 00:00:19]} 30.
h6 {[%clk 00:04:59]} {[%emt 00:00:33]} Rh5 {[%clk 00:00:25]} {[%emt 00:00:02]}
31. Nf6 {[%clk 00:04:54]} {[%emt 00:00:11]} Rxh6 {[%clk 00:00:21]} {[%emt
00:00:08]} 32. Nxd7 {[%clk 00:04:41]} {[%emt 00:00:19]} Qxd7 {[%clk 00:00:24]}
{[%emt 00:00:01]} 33. Qd2 {[%clk 00:04:34]} {[%emt 00:00:12]} Rg6 {[%clk
00:00:19]} {[%emt 00:00:10]} 34. Qf4 {[%clk 00:04:29]} {[%emt 00:00:10]} Kc7
{[%clk 00:00:17]} {[%emt 00:00:07]} 35. Rd5 {[%clk 00:04:25]} {[%emt 00:00:09]}
g3 {[%clk 00:00:16]} {[%emt 00:00:06]} 36. Rxc5+ {[%clk 00:04:25]} {[%emt
00:00:05]} Kb8 {[%clk 00:00:17]} {[%emt 00:00:03]} 37. Qf8+ {[%clk 00:04:28]}
{[%emt 00:00:04]} Qc8 {[%clk 00:00:11]} {[%emt 00:00:10]} 38. Qxc8# {[%clk
00:04:30]} {[%emt 00:00:03]} 1-0

[Event "Rapid Tournament (RAP)"]
[Site "Biel, Switzerland"]
[Date "2026.07.12"]
[Round "5.43"]
[White "Grimaldi, Francois-Xavier"]
[Black "Ivarsson, Anders"]
[Result "0-1"]
[TimeControl "15 + 5"]
[WhiteTitle "-"]
[BlackTitle "-"]
[WhiteFideId "1367706"]
[BlackFideId "1768158"]
[WhiteElo "1783"]
[BlackElo "1907"]

1. e4 {[%clk 00:15:08]} {[%emt 00:00:03]} c5 {[%clk 00:15:10]} 2. Nf3 {[%clk
00:15:12]} a6 {[%clk 00:15:14]} 3. c3 {[%clk 00:15:03]} {[%emt 00:00:13]} d5
{[%clk 00:15:15]} {[%emt 00:00:04]} 4. exd5 {[%clk 00:14:53]} {[%emt 00:00:16]}
Qxd5 {[%clk 00:15:18]} {[%emt 00:00:02]} 5. d4 {[%clk 00:14:56]} {[%emt
00:00:02]} Nf6 {[%clk 00:15:19]} {[%emt 00:00:03]} 6. Be3 {[%clk 00:14:28]}
{[%emt 00:00:32]} cxd4 {[%clk 00:15:22]} {[%emt 00:00:03]} 7. cxd4 {[%clk
00:14:24]} {[%emt 00:00:09]} e6 {[%clk 00:15:06]} {[%emt 00:00:21]} 8. a3
{[%clk 00:14:08]} {[%emt 00:00:22]} Nc6 {[%clk 00:14:59]} {[%emt 00:00:11]} 9.
Nc3 {[%clk 00:14:08]} {[%emt 00:00:06]} Qd6 {[%clk 00:14:50]} {[%emt 00:00:13]}
10. Bc4 {[%clk 00:13:10]} {[%emt 00:01:03]} b5 {[%clk 00:14:38]} {[%emt
00:00:17]} 11. Bxb5 {[%clk 00:11:31]} {[%emt 00:01:44]} axb5 {[%clk 00:14:05]}
{[%emt 00:00:38]} 12. Nxb5 {[%clk 00:11:35]} {[%emt 00:00:01]} Qb8 {[%clk
00:13:48]} {[%emt 00:00:22]} 13. a4 {[%clk 00:11:08]} {[%emt 00:00:33]} Bd7
{[%clk 00:12:38]} {[%emt 00:01:14]} 14. O-O {[%clk 00:10:20]} {[%emt 00:00:53]}
Be7 {[%clk 00:12:22]} {[%emt 00:00:20]} 15. Bg5 {[%clk 00:06:19]} {[%emt
00:04:07]} O-O {[%clk 00:12:13]} {[%emt 00:00:13]} 16. Bxf6 {[%clk 00:06:22]}
{[%emt 00:00:03]} Bxf6 {[%clk 00:12:16]} {[%emt 00:00:02]} 17. d5 {[%clk
00:06:26]} {[%emt 00:00:02]} Na5 {[%clk 00:11:02]} {[%emt 00:01:18]} 18. dxe6
{[%clk 00:05:05]} {[%emt 00:01:27]} Bxe6 {[%clk 00:11:03]} {[%emt 00:00:02]} 19.
Rb1 {[%clk 00:04:48]} {[%emt 00:00:23]} Bb3 {[%clk 00:10:08]} {[%emt 00:00:59]}
20. Qd3 {[%clk 00:03:36]} {[%emt 00:01:18]} Bxa4 {[%clk 00:10:04]} {[%emt
00:00:08]} 21. Nc3 {[%clk 00:03:39]} {[%emt 00:00:03]} Bc6 {[%clk 00:09:45]}
{[%emt 00:00:23]} 22. Nd4 {[%clk 00:03:26]} {[%emt 00:00:19]} Bxd4 {[%clk
00:08:39]} {[%emt 00:01:11]} 23. Qxd4 {[%clk 00:03:30]} {[%emt 00:00:02]} Nb3
{[%clk 00:08:23]} {[%emt 00:00:20]} 24. Qe3 {[%clk 00:01:52]} {[%emt 00:01:43]}
Re8 {[%clk 00:08:20]} {[%emt 00:00:07]} 25. Qd3 {[%clk 00:01:40]} {[%emt
00:00:18]} Qb7 {[%clk 00:07:57]} {[%emt 00:00:28]} 26. f3 {[%clk 00:01:36]}
{[%emt 00:00:09]} Rad8 {[%clk 00:07:53]} {[%emt 00:00:08]} 27. Qc2 {[%clk
00:00:58]} {[%emt 00:00:44]} Nd2 {[%clk 00:07:41]} {[%emt 00:00:18]} 28. Rbd1
{[%clk 00:01:01]} {[%emt 00:00:01]} Nxf1 {[%clk 00:07:42]} {[%emt 00:00:03]} 29.
Rxd8 {[%clk 00:01:04]} {[%emt 00:00:03]} Rxd8 {[%clk 00:07:44]} {[%emt
00:00:03]} 30. Kxf1 {[%clk 00:01:07]} {[%emt 00:00:02]} Bb5+ {[%clk 00:07:18]}
{[%emt 00:00:31]} 31. Kg1 {[%clk 00:01:09]} {[%emt 00:00:03]} Qb6+ {[%clk
00:07:13]} {[%emt 00:00:10]} 32. Kh1 {[%clk 00:01:12]} {[%emt 00:00:02]} Qe3
{[%clk 00:06:41]} {[%emt 00:00:36]} 33. h3 {[%clk 00:00:51]} {[%emt 00:00:27]}
Bc6 {[%clk 00:06:08]} {[%emt 00:00:37]} 34. Qf5 {[%clk 00:00:00]} {[%emt
00:00:56]} Qe6 {[%clk 00:05:38]} {[%emt 00:00:33]} 35. Qg5 {[%clk 00:00:00]}
{[%emt 00:00:03]} f6 {[%clk 00:05:35]} {[%emt 00:00:08]} 36. Qa5 {[%clk
00:00:00]} {[%emt 00:00:02]} Qe1+ {[%clk 00:05:30]} {[%emt 00:00:09]} 37. Kh2
{[%clk 00:00:00]} {[%emt 00:00:02]} Qe5+ {[%clk 00:05:33]} {[%emt 00:00:01]}
0-1

[Event "Rapid Tournament (RAP)"]
[Site "Biel, Switzerland"]
[Date "2026.07.12"]
[Round "5.44"]
[White "Lachat, Pierre"]
[Black "Belmadani, Naim"]
[Result "1-0"]
[TimeControl "15 + 5"]
[WhiteTitle "-"]
[BlackTitle "-"]
[WhiteFideId "1310763"]
[BlackFideId "1354302"]
[WhiteElo "1904"]
[BlackElo "1758"]

1. e4 {[%clk 00:15:07]} {[%emt 00:00:02]} e5 {[%clk 00:15:06]} {[%emt
00:00:04]} 2. Nc3 {[%clk 00:15:09]} {[%emt 00:00:03]} Nf6 {[%clk 00:15:06]}
{[%emt 00:00:05]} 3. Nf3 {[%clk 00:15:10]} {[%emt 00:00:04]} Nc6 {[%clk
00:15:07]} {[%emt 00:00:04]} 4. Bc4 {[%clk 00:15:12]} {[%emt 00:00:03]} Nxe4
{[%clk 00:15:08]} {[%emt 00:00:04]} 5. Nxe4 {[%clk 00:15:10]} {[%emt 00:00:08]}
d5 {[%clk 00:15:10]} {[%emt 00:00:02]} 6. Bxd5 {[%clk 00:15:00]} {[%emt
00:00:15]} Qxd5 {[%clk 00:15:10]} {[%emt 00:00:04]} 7. Nc3 {[%clk 00:15:01]}
{[%emt 00:00:06]} Qd8 {[%clk 00:14:27]} {[%emt 00:00:47]} 8. d3 {[%clk
00:14:39]} {[%emt 00:00:27]} Bg4 {[%clk 00:14:26]} {[%emt 00:00:05]} 9. Be3
{[%clk 00:14:35]} {[%emt 00:00:10]} Bb4 {[%clk 00:14:16]} {[%emt 00:00:13]} 10.
h3 {[%clk 00:14:27]} {[%emt 00:00:14]} Bh5 {[%clk 00:14:20]} {[%emt 00:00:02]}
11. g4 {[%clk 00:14:22]} {[%emt 00:00:10]} Bg6 {[%clk 00:14:21]} {[%emt
00:00:04]} 12. Bd2 {[%clk 00:14:22]} {[%emt 00:00:04]} O-O {[%clk 00:12:54]}
{[%emt 00:01:33]} 13. Qe2 {[%clk 00:14:05]} {[%emt 00:00:22]} Nd4 {[%clk
00:12:36]} {[%emt 00:00:22]} 14. Nxd4 {[%clk 00:13:54]} {[%emt 00:00:18]} exd4
{[%clk 00:12:38]} {[%emt 00:00:03]} 15. Ne4 {[%clk 00:13:54]} {[%emt 00:00:05]}
Bxd2+ {[%clk 00:12:04]} {[%emt 00:00:39]} 16. Qxd2 {[%clk 00:13:54]} {[%emt
00:00:04]} Re8 {[%clk 00:11:51]} {[%emt 00:00:16]} 17. O-O-O {[%clk 00:12:58]}
{[%emt 00:01:02]} Qd5 {[%clk 00:10:34]} {[%emt 00:01:21]} 18. b3 {[%clk
00:12:09]} {[%emt 00:00:56]} Bxe4 {[%clk 00:07:36]} {[%emt 00:03:03]} 19. dxe4
{[%clk 00:12:11]} {[%emt 00:00:03]} Rxe4 {[%clk 00:07:39]} {[%emt 00:00:02]} 20.
f3 {[%clk 00:12:11]} {[%emt 00:00:06]} Re6 {[%clk 00:07:03]} {[%emt 00:00:39]}
21. Qxd4 {[%clk 00:12:05]} {[%emt 00:00:12]} Qxd4 {[%clk 00:06:41]} {[%emt
00:00:27]} 22. Rxd4 {[%clk 00:12:08]} g5 {[%clk 00:06:01]} {[%emt 00:00:46]} 23.
Rd7 {[%clk 00:11:42]} {[%emt 00:00:32]} Rc8 {[%clk 00:05:34]} {[%emt 00:00:32]}
24. Kd2 {[%clk 00:11:29]} {[%emt 00:00:18]} Rd6+ {[%clk 00:03:18]} {[%emt
00:02:21]} 25. Rxd6 {[%clk 00:11:31]} {[%emt 00:00:03]} cxd6 {[%clk 00:03:22]}
{[%emt 00:00:02]} 26. Re1 {[%clk 00:10:58]} {[%emt 00:00:37]} Rc7 {[%clk
00:03:26]} {[%emt 00:00:01]} 27. Kd3 {[%clk 00:11:02]} {[%emt 00:00:01]} b5
{[%clk 00:03:23]} {[%emt 00:00:08]} 28. c3 {[%clk 00:11:03]} {[%emt 00:00:04]}
Kg7 {[%clk 00:03:20]} {[%emt 00:00:08]} 29. Re4 {[%clk 00:11:06]} {[%emt
00:00:01]} a6 {[%clk 00:03:17]} {[%emt 00:00:09]} 30. Rd4 {[%clk 00:11:09]}
{[%emt 00:00:02]} Rc6 {[%clk 00:03:15]} {[%emt 00:00:07]} 31. c4 {[%clk
00:10:52]} {[%emt 00:00:22]} b4 {[%clk 00:03:07]} {[%emt 00:00:13]} 32. Ke4
{[%clk 00:10:41]} {[%emt 00:00:16]} Kf6 {[%clk 00:02:35]} {[%emt 00:00:36]} 33.
Kd5 {[%clk 00:10:10]} {[%emt 00:00:37]} Rb6 {[%clk 00:02:40]} {[%emt 00:00:01]}
34. Ke4 {[%clk 00:09:38]} {[%emt 00:00:36]} h6 {[%clk 00:02:43]} {[%emt
00:00:02]} 35. Rd5 {[%clk 00:07:23]} {[%emt 00:02:20]} Rc6 {[%clk 00:02:25]}
{[%emt 00:00:23]} 36. f4 {[%clk 00:06:56]} {[%emt 00:00:32]} gxf4 {[%clk
00:01:48]} {[%emt 00:00:43]} 37. Kxf4 {[%clk 00:06:44]} {[%emt 00:00:16]} Ke6
{[%clk 00:01:25]} {[%emt 00:00:28]} 38. Rh5 {[%clk 00:06:08]} {[%emt 00:00:41]}
Ke7 {[%clk 00:01:03]} {[%emt 00:00:27]} 39. Rxh6 {[%clk 00:05:39]} {[%emt
00:00:34]} Rc5 {[%clk 00:01:07]} 40. Rh5 {[%clk 00:04:10]} {[%emt 00:01:35]}
Rc8 {[%clk 00:01:11]} {[%emt 00:00:01]} 41. h4 {[%clk 00:04:03]} {[%emt
00:00:12]} f6 {[%clk 00:00:45]} {[%emt 00:00:32]} 42. Ra5 {[%clk 00:03:50]}
{[%emt 00:00:18]} Ra8 {[%clk 00:00:34]} {[%emt 00:00:15]} 43. Kf5 {[%clk
00:03:43]} {[%emt 00:00:12]} Kf7 {[%clk 00:00:37]} {[%emt 00:00:03]} 44. Rd5
{[%clk 00:03:41]} {[%emt 00:00:06]} Re8 {[%clk 00:00:17]} {[%emt 00:00:25]} 45.
Rxd6 {[%clk 00:03:23]} {[%emt 00:00:24]} Re5+ {[%clk 00:00:21]} {[%emt
00:00:01]} 46. Kf4 {[%clk 00:03:25]} {[%emt 00:00:03]} Ra5 {[%clk 00:00:25]}
{[%emt 00:00:01]} 47. h5 {[%clk 00:03:23]} {[%emt 00:00:06]} Rxa2 {[%clk
00:00:28]} {[%emt 00:00:03]} 48. Rb6 {[%clk 00:03:26]} {[%emt 00:00:02]} a5
{[%clk 00:00:28]} {[%emt 00:00:05]} 49. Rb5 {[%clk 00:03:24]} {[%emt 00:00:06]}
Ra3 {[%clk 00:00:17]} {[%emt 00:00:10]} 50. c5 {[%clk 00:03:15]} {[%emt
00:00:20]} Rxb3 {[%clk 00:00:17]} {[%emt 00:00:05]} 51. Rxa5 {[%clk 00:03:18]}
{[%emt 00:00:02]} Rc3 {[%clk 00:00:21]} 52. Kf5 {[%clk 00:03:09]} {[%emt
00:00:14]} b3 {[%clk 00:00:24]} {[%emt 00:00:02]} 53. Ra7+ {[%clk 00:03:12]}
{[%emt 00:00:02]} Kg8 {[%clk 00:00:22]} {[%emt 00:00:06]} 54. Kg6 {[%clk
00:03:14]} {[%emt 00:00:04]} Kf8 {[%clk 00:00:21]} {[%emt 00:00:06]} 55. Rb7
{[%clk 00:03:03]} {[%emt 00:00:16]} Rxc5 {[%clk 00:00:18]} {[%emt 00:00:08]} 56.
Kxf6 {[%clk 00:02:59]} {[%emt 00:00:09]} Rc6+ {[%clk 00:00:20]} {[%emt
00:00:04]} 57. Kg5 {[%clk 00:03:01]} {[%emt 00:00:02]} Rc5+ {[%clk 00:00:24]}
{[%emt 00:00:01]} 58. Kh4 {[%clk 00:03:05]} {[%emt 00:00:01]} Rc3 {[%clk
00:00:24]} {[%emt 00:00:06]} 59. h6 {[%clk 00:03:07]} {[%emt 00:00:02]} Kg8
{[%clk 00:00:21]} {[%emt 00:00:08]} 60. Kh5 {[%clk 00:03:08]} {[%emt 00:00:04]}
Rc5+ {[%clk 00:00:20]} {[%emt 00:00:06]} 61. g5 {[%clk 00:03:11]} {[%emt
00:00:02]} Rc3 {[%clk 00:00:24]} 62. Rb8+ {[%clk 00:02:59]} {[%emt 00:00:17]}
Kf7 {[%clk 00:00:18]} {[%emt 00:00:11]} 63. g6+ {[%clk 00:02:43]} {[%emt
00:00:21]} Kf6 {[%clk 00:00:20]} {[%emt 00:00:02]} 64. g7 {[%clk 00:02:23]}
{[%emt 00:00:27]} Rc5+ {[%clk 00:00:06]} {[%emt 00:00:19]} 65. Kh4 {[%clk
00:02:20]} {[%emt 00:00:07]} Rc4+ {[%clk 00:00:10]} {[%emt 00:00:01]} 66. Kg3
{[%clk 00:02:22]} {[%emt 00:00:03]} Rc3+ {[%clk 00:00:14]} {[%emt 00:00:01]} 67.
Kf4 {[%clk 00:02:25]} {[%emt 00:00:02]} Rc4+ {[%clk 00:00:18]} {[%emt
00:00:01]} 68. Ke3 {[%clk 00:02:28]} {[%emt 00:00:02]} Rc3+ {[%clk 00:00:18]}
{[%emt 00:00:05]} 69. Kd4 {[%clk 00:02:32]} {[%emt 00:00:02]} 1-0